[Event "*** Titled Tuesday Blitz"]
[Site "Chess.com"]
[Date "2018.12.04"]
[Round "2"]
[White "tango_argentino"]
[Black "capatl"]
[Result "0-1"]
[WhiteElo "2471"]
[BlackElo "2552"]
[TimeControl "180+2"]
[EndTime "13:21:16 PST"]
[Termination "capatl won by resignation"]

1. e4 {[%clk 0:02:51.3]} 1... c5 {[%clk 0:03:00.5]} 2. Nf3 {[%clk 0:02:51.2]}
2... e6 {[%clk 0:03:01.4]} 3. b3 {[%clk 0:02:49.3]} 3... a6 {[%clk 0:02:59.7]}
4. Bb2 {[%clk 0:02:49]} 4... b6 {[%clk 0:02:59.5]} 5. Bd3 {[%clk 0:02:48.3]}
5... Bb7 {[%clk 0:03:00.5]} 6. O-O {[%clk 0:02:49.4]} 6... d6 {[%clk 0:03:01.4]}
7. Re1 {[%clk 0:02:50.5]} 7... Nd7 {[%clk 0:03:02.5]} 8. c3 {[%clk 0:02:49.2]}
8... Ngf6 {[%clk 0:03:00.5]} 9. Bc2 {[%clk 0:02:49.9]} 9... Be7 {[%clk 0:02:59]}
10. d4 {[%clk 0:02:50.6]} 10... O-O {[%clk 0:02:56.6]} 11. Nbd2 {[%clk
0:02:49.2]} 11... Rc8 {[%clk 0:02:57.6]} 12. e5 {[%clk 0:02:49.8]} 12... Nd5
{[%clk 0:02:31.4]} 13. Ne4 {[%clk 0:02:40.1]} 13... dxe5 {[%clk 0:02:28.8]} 14.
dxe5 {[%clk 0:02:34.9]} 14... c4 {[%clk 0:02:08.9]} 15. bxc4 {[%clk 0:02:02.8]}
15... Nf4 {[%clk 0:02:08.4]} 16. Qc1 {[%clk 0:02:00.2]} 16... Ng6 {[%clk
0:02:00.7]} 17. c5 {[%clk 0:01:56.4]} 17... Nxc5 {[%clk 0:01:58.7]} 18. Nxc5
{[%clk 0:01:48.7]} 18... Rxc5 {[%clk 0:02:00.6]} 19. Qe3 {[%clk 0:01:48.6]}
19... Bxf3 {[%clk 0:01:57.3]} 20. Qxf3 {[%clk 0:01:44.5]} 20... Nxe5 {[%clk
0:01:47.6]} 21. Qe2 {[%clk 0:01:30.6]} 21... Nc4 {[%clk 0:01:33.7]} 22. Rad1
{[%clk 0:01:30.9]} 22... Qc7 {[%clk 0:01:34]} 23. Bc1 {[%clk 0:01:27.6]} 23...
Bg5 {[%clk 0:01:24.3]} 24. Qe4 {[%clk 0:01:06.7]} 24... g6 {[%clk 0:01:21.7]}
25. Bxg5 {[%clk 0:00:56.3]} 25... Rxg5 {[%clk 0:01:23.6]} 26. Bb3 {[%clk
0:00:49.9]} 26... Rc5 {[%clk 0:01:21.8]} 27. Rd4 {[%clk 0:00:46.1]} 27... Nd6
{[%clk 0:01:19.4]} 28. Qf4 {[%clk 0:00:41.7]} 28... e5 {[%clk 0:00:56.2]} 29.
Rxe5 {[%clk 0:00:39.5]} 29... Rxe5 {[%clk 0:00:57.4]} 30. Qxe5 {[%clk
0:00:41.4]} 30... Re8 {[%clk 0:00:58.7]} 31. Bxf7+ {[%clk 0:00:30]} 31... Qxf7
{[%clk 0:00:53.7]} 0-1

[Event "*** Titled Tuesday Blitz"]
[Site "Chess.com"]
[Date "2018.12.04"]
[Round "2"]
[White "Chessnut2018"]
[Black "hansen"]
[Result "0-1"]
[WhiteElo "1400"]
[BlackElo "2789"]
[TimeControl "180+2"]
[EndTime "13:21:25 PST"]
[Termination "hansen won by resignation"]

1. d4 {[%clk 0:03:01.9]} 1... Nf6 {[%clk 0:02:56.3]} 2. e3 {[%clk 0:03:02.8]}
2... g6 {[%clk 0:02:57.2]} 3. f4 {[%clk 0:03:02.2]} 3... Bg7 {[%clk 0:02:58.4]}
4. Nf3 {[%clk 0:03:02.9]} 4... c5 {[%clk 0:02:59.4]} 5. Bd3 {[%clk 0:03:03.6]}
5... O-O {[%clk 0:02:59.5]} 6. O-O {[%clk 0:03:04]} 6... Qc7 {[%clk 0:02:46]} 7.
c3 {[%clk 0:03:03.2]} 7... d6 {[%clk 0:02:45.9]} 8. Ng5 {[%clk 0:02:45.9]} 8...
Nc6 {[%clk 0:02:45.1]} 9. Ne4 {[%clk 0:02:46.6]} 9... Nd5 {[%clk 0:02:34.2]} 10.
c4 {[%clk 0:02:30.7]} 10... Ndb4 {[%clk 0:02:33.6]} 11. d5 {[%clk 0:02:25.8]}
11... Nxd3 {[%clk 0:02:34.6]} 12. Qxd3 {[%clk 0:02:26.3]} 12... Nb4 {[%clk
0:02:35.9]} 13. Qd2 {[%clk 0:02:16.7]} 13... Bf5 {[%clk 0:02:28]} 14. Nbc3
{[%clk 0:02:13.6]} 14... Bxc3 {[%clk 0:02:21.8]} 15. bxc3 {[%clk 0:02:12.9]}
15... Bxe4 {[%clk 0:01:55.4]} 16. cxb4 {[%clk 0:02:11.9]} 16... cxb4 {[%clk
0:01:56.8]} 17. Bb2 {[%clk 0:02:11.6]} 17... Qxc4 {[%clk 0:01:50.2]} 18. Rac1
{[%clk 0:02:06.6]} 18... Qxd5 {[%clk 0:01:51.2]} 19. Qxd5 {[%clk 0:02:04.6]}
19... Bxd5 {[%clk 0:01:49.6]} 20. Rc7 {[%clk 0:02:02.2]} 20... Rfe8 {[%clk
0:01:47.8]} 21. Rfc1 {[%clk 0:02:02.9]} 21... a5 {[%clk 0:01:46.3]} 22. Kf2
{[%clk 0:01:51.5]} 22... f6 {[%clk 0:01:43.1]} 23. g4 {[%clk 0:01:47.3]} 23...
Kf7 {[%clk 0:01:41.7]} 24. Ke2 {[%clk 0:01:35]} 24... b5 {[%clk 0:01:38.7]} 25.
Kd2 {[%clk 0:01:35]} 25... Bxa2 {[%clk 0:01:38]} 26. e4 {[%clk 0:01:24.5]} 26...
Bc4 {[%clk 0:01:37.2]} 27. Ke3 {[%clk 0:01:21.3]} 27... Rec8 {[%clk 0:01:37]}
28. Rxc8 {[%clk 0:01:18.1]} 28... Rxc8 {[%clk 0:01:37.8]} 29. Kd4 {[%clk
0:01:19]} 29... a4 {[%clk 0:01:38.5]} 30. h4 {[%clk 0:01:09.1]} 30... a3 {[%clk
0:01:39.1]} 31. Ba1 {[%clk 0:01:06.7]} 31... e5+ {[%clk 0:01:40.6]} 32. fxe5
{[%clk 0:01:04.8]} 32... fxe5+ {[%clk 0:01:41.5]} 33. Ke3 {[%clk 0:01:05.4]}
33... b3 {[%clk 0:01:42.4]} 34. Bc3 {[%clk 0:00:53.2]} 34... b2 {[%clk
0:01:39.3]} 35. Bxb2 {[%clk 0:00:52]} 35... axb2 {[%clk 0:01:39.8]} 36. Rb1
{[%clk 0:00:53.4]} 36... Ra8 {[%clk 0:01:40.8]} 37. Rxb2 {[%clk 0:00:53.4]}
37... Ra3+ {[%clk 0:01:41.8]} 38. Kf2 {[%clk 0:00:52.4]} 38... Ra2 {[%clk
0:01:42.8]} 39. Rxa2 {[%clk 0:00:50.6]} 39... Bxa2 {[%clk 0:01:44.7]} 40. Ke3
{[%clk 0:00:51.6]} 40... Ke6 {[%clk 0:01:45.5]} 41. Kd2 {[%clk 0:00:53]} 41...
Bb1 {[%clk 0:01:43.4]} 42. Kc3 {[%clk 0:00:53.1]} 42... Bxe4 {[%clk 0:01:44.2]}
43. Kb4 {[%clk 0:00:54.3]} 43... d5 {[%clk 0:01:45.4]} 44. Kxb5 {[%clk
0:00:54.9]} 44... Bf3 {[%clk 0:01:45.1]} 45. g5 {[%clk 0:00:52]} 45... e4 {[%clk
0:01:45.5]} 46. Kb4 {[%clk 0:00:52.4]} 46... d4 {[%clk 0:01:47]} 0-1

[Event "*** Titled Tuesday Blitz"]
[Site "Chess.com"]
[Date "2018.12.04"]
[Round "2"]
[White "AliKa2810"]
[Black "Caminator2000"]
[Result "0-1"]
[WhiteElo "2486"]
[BlackElo "2362"]
[TimeControl "180+2"]
[EndTime "13:21:32 PST"]
[Termination "Caminator2000 won by resignation"]

1. e4 {[%clk 0:03:01.9]} 1... a6 {[%clk 0:02:52.7]} 2. d4 {[%clk 0:03:00.8]}
2... b5 {[%clk 0:02:52.1]} 3. Bd3 {[%clk 0:03:02.2]} 3... Bb7 {[%clk 0:02:53]}
4. Nf3 {[%clk 0:03:03.8]} 4... e6 {[%clk 0:02:53.9]} 5. O-O {[%clk 0:03:04.3]}
5... Be7 {[%clk 0:02:54.7]} 6. Re1 {[%clk 0:03:00.9]} 6... Nf6 {[%clk
0:02:55.4]} 7. c3 {[%clk 0:02:55.4]} 7... d5 {[%clk 0:02:44.9]} 8. e5 {[%clk
0:02:54.6]} 8... Nfd7 {[%clk 0:02:45.8]} 9. a4 {[%clk 0:02:55.3]} 9... b4 {[%clk
0:02:37.7]} 10. a5 {[%clk 0:02:53.5]} 10... c5 {[%clk 0:02:38]} 11. Nbd2 {[%clk
0:02:42.5]} 11... c4 {[%clk 0:02:35.2]} 12. Bb1 {[%clk 0:02:42.2]} 12... Nc6
{[%clk 0:02:35.8]} 13. Nf1 {[%clk 0:02:42.9]} 13... Nxa5 {[%clk 0:02:31.4]} 14.
Bc2 {[%clk 0:02:38.8]} 14... b3 {[%clk 0:02:11.8]} 15. Bb1 {[%clk 0:02:39.2]}
15... Nc6 {[%clk 0:02:13.1]} 16. Ng3 {[%clk 0:02:39.4]} 16... a5 {[%clk
0:02:10.6]} 17. Nh5 {[%clk 0:02:37.7]} 17... g6 {[%clk 0:02:10.4]} 18. Ng3
{[%clk 0:01:58.7]} 18... a4 {[%clk 0:02:05.4]} 19. Qe2 {[%clk 0:01:51.8]} 19...
Nb6 {[%clk 0:02:02]} 20. Qe3 {[%clk 0:01:47.3]} 20... a3 {[%clk 0:01:54.3]} 21.
bxa3 {[%clk 0:01:47.4]} 21... Na4 {[%clk 0:01:55.2]} 22. Qd2 {[%clk 0:01:47.4]}
22... Na7 {[%clk 0:01:50.8]} 23. Bb2 {[%clk 0:01:45.7]} 23... Nb5 {[%clk
0:01:51.6]} 24. Ne2 {[%clk 0:01:41.5]} 24... O-O {[%clk 0:01:34]} 25. h4 {[%clk
0:01:38]} 25... Nxb2 {[%clk 0:01:05.5]} 26. Qxb2 {[%clk 0:01:38]} 26... Rxa3
{[%clk 0:01:06.9]} 27. Rxa3 {[%clk 0:01:37.4]} 27... Nxa3 {[%clk 0:01:03.4]} 28.
h5 {[%clk 0:01:38.1]} 28... Qa5 {[%clk 0:01:01.7]} 29. Nf4 {[%clk 0:01:31]}
29... Nxb1 {[%clk 0:00:58.6]} 30. Rxb1 {[%clk 0:01:31.4]} 30... Qa2 {[%clk
0:00:58]} 31. Qc1 {[%clk 0:01:26.9]} 31... Ra8 {[%clk 0:00:43.7]} 32. hxg6
{[%clk 0:01:18.2]} 32... hxg6 {[%clk 0:00:44.6]} 33. Rb2 {[%clk 0:01:11.2]}
33... Ba3 {[%clk 0:00:30]} 34. Rxa2 {[%clk 0:00:51.5]} 34... Bxc1 {[%clk
0:00:29.4]} 0-1

[Event "*** Titled Tuesday Blitz"]
[Site "Chess.com"]
[Date "2018.12.04"]
[Round "2"]
[White "NateSolon"]
[Black "Bad_left_hook"]
[Result "1-0"]
[WhiteElo "2492"]
[BlackElo "2512"]
[TimeControl "180+2"]
[EndTime "13:21:35 PST"]
[Termination "NateSolon won by resignation"]

1. e4 {[%clk 0:03:01.9]} 1... c5 {[%clk 0:02:58.5]} 2. Nc3 {[%clk 0:03:03]} 2...
Nc6 {[%clk 0:02:58.7]} 3. Bb5 {[%clk 0:03:03.8]} 3... Nd4 {[%clk 0:02:58.8]} 4.
Nf3 {[%clk 0:03:04.4]} 4... Nxb5 {[%clk 0:02:46.8]} 5. Nxb5 {[%clk 0:03:06.3]}
5... a6 {[%clk 0:02:46]} 6. Nc3 {[%clk 0:03:07.3]} 6... d6 {[%clk 0:02:47.3]} 7.
d4 {[%clk 0:03:08.3]} 7... cxd4 {[%clk 0:02:48]} 8. Qxd4 {[%clk 0:03:10.2]} 8...
Nf6 {[%clk 0:02:48.4]} 9. Bg5 {[%clk 0:03:09.7]} 9... e6 {[%clk 0:02:44.8]} 10.
O-O-O {[%clk 0:03:10.4]} 10... Be7 {[%clk 0:02:34.8]} 11. e5 {[%clk 0:03:04.7]}
11... dxe5 {[%clk 0:02:29.9]} 12. Qxe5 {[%clk 0:03:05.3]} 12... Bd7 {[%clk
0:01:43.9]} 13. Qg3 {[%clk 0:02:54.5]} 13... O-O {[%clk 0:01:31.5]} 14. Bh6
{[%clk 0:02:45.8]} 14... Ne8 {[%clk 0:01:29.2]} 15. Ne5 {[%clk 0:02:41.6]} 15...
Bh4 {[%clk 0:01:11.8]} 16. Qg4 {[%clk 0:02:26.8]} 16... f5 {[%clk 0:00:38]} 17.
Qh5 {[%clk 0:02:27.6]} 17... gxh6 {[%clk 0:00:29.7]} 18. Nxd7 {[%clk 0:02:13.4]}
18... Qg5+ {[%clk 0:00:27.2]} 19. Qxg5+ {[%clk 0:02:13.5]} 19... Bxg5+ {[%clk
0:00:29.1]} 20. Kb1 {[%clk 0:02:14]} 20... Rf7 {[%clk 0:00:30.5]} 21. Nc5 {[%clk
0:02:05.2]} 21... Ng7 {[%clk 0:00:28.7]} 22. Rhe1 {[%clk 0:02:04.1]} 22... Re7
{[%clk 0:00:25.2]} 23. Rd6 {[%clk 0:01:44.5]} 23... Kf7 {[%clk 0:00:21.4]} 24.
Rb6 {[%clk 0:01:45.1]} 24... Ra7 {[%clk 0:00:12]} 25. Ne2 {[%clk 0:01:35.4]}
25... Rc7 {[%clk 0:00:11.5]} 26. Nd3 {[%clk 0:01:32]} 26... Bd8 {[%clk
0:00:11.6]} 27. Nd4 {[%clk 0:01:29.4]} 27... Re7 {[%clk 0:00:10.8]} 28. Rb3
{[%clk 0:01:21.7]} 28... b5 {[%clk 0:00:10.5]} 29. Nc6 {[%clk 0:01:22.3]} 29...
Rad7 {[%clk 0:00:10.4]} 30. Nxe7 {[%clk 0:01:22.2]} 30... Rxe7 {[%clk
0:00:10.3]} 31. Nc5 {[%clk 0:01:21.3]} 31... Ra7 {[%clk 0:00:09.2]} 32. f4
{[%clk 0:01:09.5]} 32... Bb6 {[%clk 0:00:09.4]} 33. Nd3 {[%clk 0:01:07.1]} 33...
Ne8 {[%clk 0:00:10.4]} 34. Ne5+ {[%clk 0:01:06.9]} 34... Kf6 {[%clk 0:00:11.4]}
35. Rd3 {[%clk 0:01:06.6]} 35... Ke7 {[%clk 0:00:08.4]} 36. Nc6+ {[%clk
0:01:06.4]} 1-0

[Event "*** Titled Tuesday Blitz"]
[Site "Chess.com"]
[Date "2018.12.04"]
[Round "2"]
[White "Alexander_Donchenko"]
[Black "Chessialist"]
[Result "1-0"]
[WhiteElo "2686"]
[BlackElo "2532"]
[TimeControl "180+2"]
[EndTime "13:21:48 PST"]
[Termination "Alexander_Donchenko won by resignation"]

1. Nf3 {[%clk 0:03:01.9]} 1... Nf6 {[%clk 0:03:00.4]} 2. c4 {[%clk 0:03:02.7]}
2... e6 {[%clk 0:02:59.9]} 3. g3 {[%clk 0:03:03.5]} 3... d5 {[%clk 0:03:00.9]}
4. d4 {[%clk 0:03:04.7]} 4... Be7 {[%clk 0:03:02]} 5. Bg2 {[%clk 0:03:05.7]}
5... O-O {[%clk 0:03:03.6]} 6. O-O {[%clk 0:03:07.3]} 6... dxc4 {[%clk 0:03:05]}
7. Ne5 {[%clk 0:03:08.7]} 7... Nc6 {[%clk 0:03:02.8]} 8. Bxc6 {[%clk 0:03:09.8]}
8... bxc6 {[%clk 0:03:04.1]} 9. Nxc6 {[%clk 0:03:11.7]} 9... Qe8 {[%clk
0:03:05.6]} 10. Nxe7+ {[%clk 0:03:13]} 10... Qxe7 {[%clk 0:03:07.3]} 11. Na3
{[%clk 0:03:13.9]} 11... c5 {[%clk 0:02:59.8]} 12. dxc5 {[%clk 0:03:12.5]} 12...
Qxc5 {[%clk 0:03:00.3]} 13. Be3 {[%clk 0:03:13.2]} 13... Qc6 {[%clk 0:03:00.7]}
14. Qc2 {[%clk 0:02:56.8]} 14... Bb7 {[%clk 0:03:00.1]} 15. f3 {[%clk
0:02:57.7]} 15... Nd5 {[%clk 0:03:01.2]} 16. Bf2 {[%clk 0:02:52]} 16... c3
{[%clk 0:02:55.2]} 17. Rfc1 {[%clk 0:02:41.1]} 17... cxb2 {[%clk 0:02:49.7]} 18.
Qxb2 {[%clk 0:02:39.7]} 18... Qd7 {[%clk 0:02:51]} 19. Rab1 {[%clk 0:02:28.1]}
19... Nb6 {[%clk 0:02:43.6]} 20. Nc4 {[%clk 0:02:17.1]} 20... Bd5 {[%clk
0:01:56.2]} 21. Ne5 {[%clk 0:01:54.5]} 21... Qd6 {[%clk 0:01:51.6]} 22. Bc5
{[%clk 0:01:50.2]} 22... Qd8 {[%clk 0:01:50.7]} 23. Bxf8 {[%clk 0:01:49.1]}
23... Qxf8 {[%clk 0:01:52.6]} 24. e4 {[%clk 0:01:44.8]} 24... Bb7 {[%clk
0:01:51.7]} 25. Nd7 {[%clk 0:01:38.4]} 25... Nxd7 {[%clk 0:01:52.8]} 26. Qxb7
{[%clk 0:01:38.8]} 26... Ne5 {[%clk 0:01:54.7]} 27. Kg2 {[%clk 0:01:29.9]} 27...
Rd8 {[%clk 0:01:55.3]} 28. Rc2 {[%clk 0:01:17.3]} 28... h5 {[%clk 0:01:50.4]}
29. Qxa7 {[%clk 0:01:11.8]} 29... h4 {[%clk 0:01:50.1]} 30. Rb3 {[%clk
0:01:05.2]} 30... Qd6 {[%clk 0:01:38.4]} 31. Qc7 {[%clk 0:00:55.7]} 31... Qd1
{[%clk 0:01:36.2]} 32. Rf2 {[%clk 0:00:49]} 32... hxg3 {[%clk 0:01:22.4]} 33.
hxg3 {[%clk 0:00:48.9]} 33... Ng6 {[%clk 0:01:08.5]} 34. Rb8 {[%clk 0:00:48]}
34... Rxb8 {[%clk 0:01:09.6]} 35. Qxb8+ {[%clk 0:00:49.9]} 35... Kh7 {[%clk
0:01:11.2]} 36. Qb5 {[%clk 0:00:49.6]} 36... e5 {[%clk 0:01:10]} 37. Qb3 {[%clk
0:00:39.2]} 37... Qc1 {[%clk 0:01:05.5]} 38. Qxf7 {[%clk 0:00:38.4]} 38... Qg5
{[%clk 0:01:06.6]} 39. Qd7 {[%clk 0:00:33.5]} 39... Nf4+ {[%clk 0:01:03.1]} 40.
Kf1 {[%clk 0:00:34.7]} 40... Ng6 {[%clk 0:01:01.2]} 41. Qh3+ {[%clk 0:00:35]}
41... Kg8 {[%clk 0:01:02.3]} 42. Qe6+ {[%clk 0:00:35.8]} 42... Kh7 {[%clk
0:01:03.4]} 43. Rh2+ {[%clk 0:00:36.4]} 1-0

[Event "*** Titled Tuesday Blitz"]
[Site "Chess.com"]
[Date "2018.12.04"]
[Round "2"]
[White "Parhamov"]
[Black "731291"]
[Result "1-0"]
[WhiteElo "2850"]
[BlackElo "2598"]
[TimeControl "180+2"]
[EndTime "13:21:49 PST"]
[Termination "Parhamov won by resignation"]

1. Nf3 {[%clk 0:02:59.4]} 1... Nf6 {[%clk 0:03:00.8]} 2. g3 {[%clk 0:02:59.4]}
2... b6 {[%clk 0:03:01.5]} 3. d4 {[%clk 0:02:59.7]} 3... Bb7 {[%clk 0:03:02.5]}
4. c4 {[%clk 0:03:01.1]} 4... g6 {[%clk 0:03:01.7]} 5. Nc3 {[%clk 0:03:01.3]}
5... Bg7 {[%clk 0:03:02.5]} 6. d5 {[%clk 0:03:02.4]} 6... O-O {[%clk 0:02:48.2]}
7. e4 {[%clk 0:02:49.9]} 7... d6 {[%clk 0:02:49.3]} 8. Bg2 {[%clk 0:02:48.2]}
8... e5 {[%clk 0:02:37.8]} 9. O-O {[%clk 0:02:48]} 9... a5 {[%clk 0:02:35.1]}
10. Ne1 {[%clk 0:02:43.5]} 10... Na6 {[%clk 0:02:36.1]} 11. Be3 {[%clk
0:02:43.7]} 11... Nd7 {[%clk 0:02:29.9]} 12. a3 {[%clk 0:02:33.7]} 12... f5
{[%clk 0:02:28]} 13. exf5 {[%clk 0:02:33.6]} 13... gxf5 {[%clk 0:02:29.9]} 14.
f4 {[%clk 0:02:35.2]} 14... Qe7 {[%clk 0:02:24.2]} 15. Nc2 {[%clk 0:02:24.8]}
15... Rae8 {[%clk 0:02:23.8]} 16. Qd2 {[%clk 0:02:16.5]} 16... Nac5 {[%clk
0:02:23.6]} 17. Rae1 {[%clk 0:02:17.1]} 17... Ba6 {[%clk 0:02:23.7]} 18. Nb5
{[%clk 0:02:17.1]} 18... Bxb5 {[%clk 0:02:23.7]} 19. cxb5 {[%clk 0:02:18.3]}
19... a4 {[%clk 0:02:25.2]} 20. Nb4 {[%clk 0:02:18.9]} 20... Nb3 {[%clk
0:02:13.4]} 21. Qc2 {[%clk 0:02:17.1]} 21... Ndc5 {[%clk 0:02:14.1]} 22. Nc6
{[%clk 0:02:17.2]} 22... Qf6 {[%clk 0:02:09.6]} 23. fxe5 {[%clk 0:02:16.4]}
23... dxe5 {[%clk 0:02:02.1]} 24. Bh3 {[%clk 0:01:35]} 24... e4 {[%clk
0:01:24.8]} 25. Re2 {[%clk 0:01:27.6]} 25... Qg6 {[%clk 0:01:18.4]} 26. Qc4
{[%clk 0:01:25.3]} 26... Kh8 {[%clk 0:01:17.4]} 27. Ref2 {[%clk 0:01:23.2]}
27... f4 {[%clk 0:01:09.6]} 28. Rxf4 {[%clk 0:01:23.4]} 28... Rxf4 {[%clk
0:01:11]} 29. Rxf4 {[%clk 0:01:24.2]} 29... Nd3 {[%clk 0:01:11.7]} 30. Rg4
{[%clk 0:00:56]} 30... Qh5 {[%clk 0:01:07.5]} 31. d6 {[%clk 0:00:50.9]} 31...
Qxh3 {[%clk 0:00:54.6]} 32. Qf7 {[%clk 0:00:34.9]} 32... Rg8 {[%clk 0:00:47.9]}
33. Ne7 {[%clk 0:00:35.3]} 1-0

[Event "*** Titled Tuesday Blitz"]
[Site "Chess.com"]
[Date "2018.12.04"]
[Round "2"]
[White "toog"]
[Black "kirillgenius"]
[Result "0-1"]
[WhiteElo "2200"]
[BlackElo "2160"]
[TimeControl "180+2"]
[EndTime "13:21:55 PST"]
[Termination "kirillgenius won by resignation"]

1. e4 {[%clk 0:03:01.9]} 1... c5 {[%clk 0:02:51.5]} 2. Nf3 {[%clk 0:03:01.2]}
2... e6 {[%clk 0:02:52.4]} 3. d4 {[%clk 0:03:01.8]} 3... cxd4 {[%clk 0:02:54.3]}
4. Nxd4 {[%clk 0:03:03.1]} 4... Nf6 {[%clk 0:02:55.7]} 5. Nc3 {[%clk 0:03:03.2]}
5... Nc6 {[%clk 0:02:56.6]} 6. Ndb5 {[%clk 0:03:03.5]} 6... Bb4 {[%clk
0:02:57.2]} 7. Na3 {[%clk 0:03:02.5]} 7... Nxe4 {[%clk 0:02:45.4]} 8. Bd2 {[%clk
0:03:00.9]} 8... Nxd2 {[%clk 0:02:43.7]} 9. Qxd2 {[%clk 0:03:00.8]} 9... d5
{[%clk 0:02:44.5]} 10. Nab5 {[%clk 0:03:00]} 10... d4 {[%clk 0:02:05.4]} 11. a3
{[%clk 0:02:47.7]} 11... dxc3 {[%clk 0:02:01.2]} 12. Qxd8+ {[%clk 0:02:47.1]}
12... Kxd8 {[%clk 0:01:48.4]} 13. axb4 {[%clk 0:02:49]} 13... cxb2 {[%clk
0:01:48]} 14. Rd1+ {[%clk 0:02:46.5]} 14... Ke7 {[%clk 0:01:46.5]} 15. c3 {[%clk
0:02:44.8]} 15... Bd7 {[%clk 0:01:02.7]} 16. Be2 {[%clk 0:02:38.1]} 16... a5
{[%clk 0:00:58.9]} 17. O-O {[%clk 0:02:05]} 17... axb4 {[%clk 0:00:58.6]} 18.
cxb4 {[%clk 0:02:06]} 18... Nxb4 {[%clk 0:00:56.4]} 19. Rb1 {[%clk 0:02:06.2]}
19... Bxb5 {[%clk 0:00:51.5]} 20. Bxb5 {[%clk 0:02:06.6]} 20... Ra5 {[%clk
0:00:47.9]} 21. Be2 {[%clk 0:02:00.7]} 21... Nd5 {[%clk 0:00:42.8]} 22. Rxb2
{[%clk 0:02:00.4]} 22... b6 {[%clk 0:00:43.3]} 23. Bf3 {[%clk 0:01:59.5]} 23...
Rb8 {[%clk 0:00:41.5]} 24. Rfb1 {[%clk 0:01:59.8]} 24... b5 {[%clk 0:00:32.5]}
25. Bxd5 {[%clk 0:01:56.2]} 25... exd5 {[%clk 0:00:33.1]} 26. g3 {[%clk
0:01:57.3]} 26... Kd6 {[%clk 0:00:34]} 27. Kg2 {[%clk 0:01:53.1]} 27... d4
{[%clk 0:00:31.3]} 28. Kf3 {[%clk 0:01:53.2]} 28... Kd5 {[%clk 0:00:31.7]} 29.
Ke2 {[%clk 0:01:54.2]} 29... b4 {[%clk 0:00:28.5]} 30. Rxb4 {[%clk 0:01:46.9]}
30... Rxb4 {[%clk 0:00:29.3]} 31. Rxb4 {[%clk 0:01:48.2]} 31... Ra2+ {[%clk
0:00:31.2]} 32. Kf3 {[%clk 0:01:48.3]} 32... Kc5 {[%clk 0:00:26.2]} 33. Rb7
{[%clk 0:01:48.2]} 33... d3 {[%clk 0:00:22.3]} 34. Rc7+ {[%clk 0:01:41.4]} 34...
Kd4 {[%clk 0:00:20.6]} 35. Rd7+ {[%clk 0:01:32.9]} 35... Kc3 {[%clk 0:00:20.9]}
36. Ke3 {[%clk 0:01:34.2]} 36... Re2+ {[%clk 0:00:20.7]} 37. Kf3 {[%clk
0:01:35.4]} 37... Re6 {[%clk 0:00:20.4]} 38. Rc7+ {[%clk 0:01:34.7]} 38... Kd2
{[%clk 0:00:19.8]} 39. Rxf7 {[%clk 0:01:35.8]} 39... Rf6+ {[%clk 0:00:20.8]} 40.
Rxf6 {[%clk 0:01:35.7]} 40... gxf6 {[%clk 0:00:22.7]} 41. Ke4 {[%clk 0:01:35]}
41... Ke2 {[%clk 0:00:22.8]} 42. Kf5 {[%clk 0:01:36.9]} 42... Kxf2 {[%clk
0:00:21.8]} 43. Kxf6 {[%clk 0:01:38.8]} 43... Kg2 {[%clk 0:00:22.5]} 44. g4
{[%clk 0:01:40.2]} 44... Kxh2 {[%clk 0:00:22.5]} 45. g5 {[%clk 0:01:42.1]} 45...
d2 {[%clk 0:00:23]} 46. Kg7 {[%clk 0:01:44]} 46... d1=Q {[%clk 0:00:23.4]} 47.
Kxh7 {[%clk 0:01:45.9]} 47... Qh5+ {[%clk 0:00:22.7]} 0-1

[Event "*** Titled Tuesday Blitz"]
[Site "Chess.com"]
[Date "2018.12.04"]
[Round "2"]
[White "IamSchrodingersCat"]
[Black "martinique24"]
[Result "0-1"]
[WhiteElo "2449"]
[BlackElo "2406"]
[TimeControl "180+2"]
[EndTime "13:22:00 PST"]
[Termination "martinique24 won on time"]

1. e4 {[%clk 0:03:01.9]} 1... e5 {[%clk 0:03:00.5]} 2. Nf3 {[%clk 0:03:01.9]}
2... Nf6 {[%clk 0:03:01.9]} 3. Nxe5 {[%clk 0:03:02.8]} 3... d6 {[%clk
0:03:02.9]} 4. Nf3 {[%clk 0:03:04]} 4... Nxe4 {[%clk 0:03:04.5]} 5. Nc3 {[%clk
0:03:04.8]} 5... Nxc3 {[%clk 0:03:05.3]} 6. dxc3 {[%clk 0:03:06.7]} 6... Be7
{[%clk 0:03:06.8]} 7. Be3 {[%clk 0:03:07.7]} 7... O-O {[%clk 0:03:08.1]} 8. Qd2
{[%clk 0:03:09.2]} 8... Nd7 {[%clk 0:03:09.5]} 9. O-O-O {[%clk 0:03:10.6]} 9...
Nf6 {[%clk 0:03:10.8]} 10. Bd3 {[%clk 0:03:01.5]} 10... c5 {[%clk 0:03:09.4]}
11. c4 {[%clk 0:03:01.7]} 11... b5 {[%clk 0:03:05.6]} 12. cxb5 {[%clk
0:02:48.3]} 12... a6 {[%clk 0:03:06.5]} 13. bxa6 {[%clk 0:02:10.8]} 13... Bxa6
{[%clk 0:03:08.4]} 14. Bxa6 {[%clk 0:02:12]} 14... Rxa6 {[%clk 0:03:09.8]} 15.
a3 {[%clk 0:02:12.5]} 15... d5 {[%clk 0:02:57]} 16. Bg5 {[%clk 0:02:03.4]} 16...
d4 {[%clk 0:02:57.1]} 17. Qd3 {[%clk 0:01:48.5]} 17... Rb6 {[%clk 0:02:55.7]}
18. Nd2 {[%clk 0:01:45.9]} 18... Qd5 {[%clk 0:02:52.9]} 19. Bxf6 {[%clk
0:01:39.6]} 19... Bxf6 {[%clk 0:02:49.2]} 20. Nc4 {[%clk 0:01:37.6]} 20... Re6
{[%clk 0:02:38]} 21. g3 {[%clk 0:01:27]} 21... Rfe8 {[%clk 0:02:36.7]} 22. Kb1
{[%clk 0:01:12.9]} 22... g6 {[%clk 0:02:33.2]} 23. f4 {[%clk 0:01:11.4]} 23...
Re2 {[%clk 0:02:30.4]} 24. h4 {[%clk 0:01:03.2]} 24... h5 {[%clk 0:02:30.2]} 25.
Rhg1 {[%clk 0:01:00.9]} 25... Bg7 {[%clk 0:02:22.8]} 26. f5 {[%clk 0:00:49.5]}
26... gxf5 {[%clk 0:01:59.1]} 27. Rgf1 {[%clk 0:00:40.8]} 27... R8e4 {[%clk
0:01:56.8]} 28. b3 {[%clk 0:00:31.1]} 28... Qe6 {[%clk 0:01:51.5]} 29. Qf3
{[%clk 0:00:17.2]} 29... d3 {[%clk 0:01:27.7]} 30. Qxd3 {[%clk 0:00:11.7]} 30...
Rd4 {[%clk 0:01:12.7]} 31. Qf3 {[%clk 0:00:11.6]} 31... Rxc4 {[%clk 0:01:11.1]}
32. bxc4 {[%clk 0:00:06.8]} 32... Re3 {[%clk 0:00:57.4]} 33. Qd5 {[%clk
0:00:05.5]} 33... Qb6+ {[%clk 0:00:58.3]} 34. Kc1 {[%clk 0:00:05.8]} 34... Qb2+
{[%clk 0:00:56.8]} 35. Kd2 {[%clk 0:00:07]} 35... Qc3+ {[%clk 0:00:54]} 36. Kc1
{[%clk 0:00:08]} 36... Re2 {[%clk 0:00:51]} 37. Qd8+ {[%clk 0:00:03.8]} 37...
Kh7 {[%clk 0:00:51.2]} 0-1